fUSD/lending_fUSD_20240116
["ID","MTS","AMOUNT","RATE_DAILY","PERIOD"]
[311834587,1705443080797,-465.67220929,0.0003315,5]
[311834588,1705443080807,-500.0,0.0003315,5]
[311834589,1705443080898,-500.0,0.0003315,5]
[311834590,1705443080907,-1193.96,0.0003315,5]
[311834591,1705443080917,-3158.16,0.0003315,5]
[311834592,1705443080927,-1521.13,0.0003315,5]
[311834593,1705443080936,-949.08,0.0003315,5]
[311834594,1705443080945,-500.0,0.0003315,5]
[311834595,1705443080954,-1831.88,0.0003315,5]
[311834596,1705443080963,-500.0,0.0003315,5]
[311834597,1705443080973,-500.0,0.0003315,5]
[311834598,1705443080982,-1240.63,0.0003315,5]
[311834599,1705443080991,-546.48,0.0003315,5]
[311834600,1705443081000,-500.0,0.0003315,5]
[311834601,1705443081010,-500.0,0.0003315,5]
[311834602,1705443081019,-500.0,0.0003315,5]
[311834603,1705443081028,-500.0,0.0003315,5]
[311834604,1705443081038,-500.0,0.0003315,5]
[311834605,1705443081047,-500.0,0.0003315,5]
[311834606,1705443081056,-4242.97,0.0003315,5]
[311834607,1705443081066,-782.79,0.0003315,5]
[311834608,1705443081075,-2375.28,0.0003315,5]
[311834609,1705443081085,-1282.33,0.0003315,5]
[311834610,1705443081094,-500.0,0.0003315,5]
[311834611,1705443081104,-500.0,0.0003315,5]
[311834612,1705443081113,-2032.82,0.0003315,5]
[311834613,1705443081122,-4066.87,0.0003315,5]
[311834614,1705443081132,-726.19,0.0003315,5]
[311834615,1705443081142,-758.71,0.0003315,5]
[311834616,1705443081151,-540.62,0.0003315,5]
[311834617,1705443081161,-934.89,0.0003315,5]
[311834618,1705443081170,-500.0,0.0003315,5]
[311834619,1705443081179,-500.0,0.0003315,5]
[311834620,1705443081189,-500.0,0.0003315,5]
[311834621,1705443081202,-2120.5,0.0003315,5]
[311834622,1705443081211,-500.0,0.0003315,5]
[311834623,1705443081221,-5136.68,0.0003315,5]
[311834624,1705443081230,-2416.43,0.0003315,5]
[311834625,1705443081241,-500.0,0.0003315,5]
[311834626,1705443081250,-500.0,0.0003315,5]
[311834627,1705443081259,-1666.57,0.0003315,5]
[311834628,1705443081270,-1211.35,0.0003315,5]
[311834629,1705443081280,-503.13,0.0003315,5]
[311834630,1705443081291,-598.65187319,0.0003315,5]
[311834631,1705443081300,-1199.9,0.0003315,5]
[311834632,1705443081310,-1409.62,0.0003315,5]
[311834633,1705443081320,-502.04801814,0.0003315,5]
[311834634,1705443081330,-2959.35,0.0003315,5]
[311834635,1705443081339,-500.0,0.0003315,5]
[311834636,1705443081349,-6184.03,0.0003315,5]
[311834637,1705443081358,-500.0,0.0003315,5]
[311834638,1705443081367,-2643.76,0.0003315,5]
[311834639,1705443081377,-4329.46,0.0003315,5]
[311834640,1705443081386,-509.68397323,0.0003315,2]
[311834641,1705443081396,-2061.74,0.0003315,5]
[311834642,1705443081405,-500.0,0.0003315,5]
[311834643,1705443081415,-1462.85,0.0003315,5]
[311834644,1705443081424,-500.0,0.0003315,5]
[311834645,1705443081433,-901.32,0.0003315,5]
[311834646,1705443081442,-500.0,0.0003315,5]
[311834647,1705443081451,-3071.36,0.0003315,5]
[311834648,1705443081461,-579.48,0.0003315,5]
[311834649,1705443081470,-500.0,0.0003315,5]
[311834650,1705443081480,-603.68,0.0003315,5]
[311834651,1705443081490,-768.91,0.0003315,5]
[311834652,1705443081499,-500.0,0.0003315,5]
[311834653,1705443081509,-500.0,0.0003315,5]
[311834654,1705443081518,-789.25,0.0003315,5]
[311834655,1705443081527,-3046.09,0.0003315,5]
[311834656,1705443081537,-2677.84,0.0003315,5]
[311834657,1705443081546,-2960.57,0.0003315,5]
[311834658,1705443081555,-500.0,0.0003315,5]
[311834659,1705443081564,-2603.36,0.0003315,5]
[311834660,1705443081573,-622.73,0.0003315,5]
[311834661,1705443081582,-5469.76,0.0003315,5]
[311834662,1705443081592,-500.0,0.0003315,5]
[311834663,1705443081601,-500.0,0.0003315,5]
[311834664,1705443081611,-2152.32,0.0003315,5]
[311834665,1705443081620,-2025.68,0.0003315,5]
[311834666,1705443081630,-500.0,0.0003315,5]
[311834667,1705443081639,-9668.23,0.0003315,5]
[311834668,1705443081649,-1755.95,0.0003315,5]
[311834669,1705443081658,-623.35985259,0.0003315,5]
[311834670,1705443081668,-7460.99,0.0003315,5]
[311834671,1705443081678,-500.0,0.0003315,5]
[311834672,1705443081688,-6014.2,0.0003315,5]
[311834673,1705443081698,-500.0,0.0003315,5]
[311834674,1705443081708,-500.0,0.0003315,5]
[311834675,1705443081718,-500.0,0.0003315,5]
[311834676,1705443081736,-1762.01,0.0003315,5]
[311834677,1705443081746,-500.0,0.0003315,5]
[311834678,1705443081755,-500.0,0.0003315,5]
[311834679,1705443081764,-509.80278314,0.0003315,5]
[311834680,1705443081774,-500.0,0.0003315,5]
[311834681,1705443081784,-508.49,0.0003315,5]
[311834682,1705443081793,-500.0,0.0003315,5]
[311834683,1705443081802,-500.0,0.0003315,5]
[311834684,1705443081812,-500.0,0.0003315,5]
[311834685,1705443081821,-1524.46,0.0003315,5]
[311834686,1705443081830,-500.0,0.0003315,5]
[311834687,1705443081839,-500.0,0.0003315,5]
[311834688,1705443081848,-205.4594,0.0003315,7]
[311834689,1705443081857,-241.573841,0.0003315,7]
[311834690,1705443081866,-151.0,0.0003315,7]
[311834691,1705443081875,-151.0,0.0003315,7]
[311834692,1705443081885,-154.0,0.00033151,2]
[311834693,1705443081894,-962.984574,0.00033173,2]
[311834694,1705443081904,-1000.0,0.000332,6]
[311834695,1705443081914,-761.346037,0.000333,10]
[311834696,1705443081923,-450.0,0.00033327,3]
[311834697,1705443081932,-962.984574,0.00033333,2]
[311834698,1705443081941,-31101.2329775,0.00033401,2]
[311834699,1705443081950,-2908.3639412,0.00033401,2]
[311834700,1705443081960,-5383.3952595,0.00033401,2]
[311834701,1705443081969,-151.0,0.00033401,7]
[311834702,1705443081979,-15336.75517156,0.00033424,2]
[311834703,1705443081988,-582.04080355,0.00033424,5]
[311834704,1705443081998,-500.0,0.00033424,5]
[311834705,1705443082007,-500.0,0.00033424,5]
[311834706,1705443082017,-500.0,0.00033424,5]
[311834707,1705443082027,-500.0,0.00033424,5]
[311834708,1705443082038,-500.0,0.00033424,5]
[311834709,1705443082048,-500.0,0.00033424,5]
[311834710,1705443082058,-500.0,0.00033424,5]
[311834711,1705443082067,-500.0,0.00033424,5]
[311834712,1705443082076,-610.3402664,0.00033424,5]
[311834713,1705443082085,-436.35347209,0.00033424,5]
[311834714,1705443082095,-500.0,0.00033424,5]
[311834715,1705443082104,-500.0,0.00033424,5]
[311834716,1705443082113,-500.0,0.00033424,5]
[311834717,1705443082122,-500.0,0.00033424,5]
[311834718,1705443082132,-500.0,0.00033424,5]
[311834719,1705443082141,-500.0,0.00033424,5]
[311834720,1705443082151,-500.0,0.00033424,5]
[311834721,1705443082160,-500.0,0.00033424,5]
[311834722,1705443082171,-743.33,0.00033424,5]
[311834723,1705443082182,-873.79,0.00033424,5]
[311834724,1705443082195,-395.8205552,0.00033424,20]
[311834725,1705443082207,-962.13,0.00033424,5]
[311834726,1705443082216,-500.0,0.00033424,5]
[311834727,1705443082225,-500.0,0.00033424,5]
[311834728,1705443082235,-500.0,0.00033424,5]
[311834729,1705443082245,-500.0,0.00033424,5]
[311834730,1705443082254,-500.0,0.00033424,5]
[311834731,1705443082264,-500.0,0.00033424,5]
[311834732,1705443082274,-500.0,0.00033424,5]
[311834733,1705443082284,-1000.0,0.00033424,2]
[311834734,1705443082293,-690.29,0.00033424,5]
[311834735,1705443082302,-2013.45,0.00033424,5]
[311834736,1705443082311,-500.0,0.00033424,5]
[311834737,1705443082320,-500.0,0.00033424,5]
[311834738,1705443082329,-500.0,0.00033424,5]
[311834739,1705443082337,-500.0,0.00033424,5]
[311834740,1705443082346,-500.0,0.00033424,5]
[311834741,1705443082355,-500.0,0.00033424,5]
[311834742,1705443082365,-500.0,0.00033424,5]
[311834743,1705443082373,-500.0,0.00033424,5]
[311834744,1705443082382,-717.45,0.00033424,5]
[311834745,1705443082392,-500.0,0.00033424,5]
[311834746,1705443082402,-500.0,0.00033424,5]
[311834747,1705443082411,-1066.89,0.00033424,5]
[311834748,1705443082420,-500.0,0.00033424,5]
[311834749,1705443082430,-500.0,0.00033424,5]
[311834750,1705443082438,-500.0,0.00033424,5]
[311834751,1705443082447,-500.0,0.00033424,5]
[311834752,1705443082456,-543.64,0.00033424,5]
[311834753,1705443082465,-500.0,0.00033424,5]
[311834754,1705443082475,-500.0,0.00033424,5]
[311834755,1705443082484,-500.0,0.00033424,5]
[311834756,1705443082493,-500.0,0.00033424,5]
[311834757,1705443082502,-500.0,0.00033424,5]
[311834758,1705443082511,-500.0,0.00033424,5]
[311834759,1705443082520,-500.0,0.00033424,5]
[311834760,1705443082529,-433.64839393,0.00033424,5]
[311834761,1705443082539,-500.0,0.00033424,5]
[311834762,1705443082548,-500.0,0.00033424,5]
[311834763,1705443082557,-817.43,0.00033424,5]
[311834764,1705443082566,-725.87,0.00033424,5]
[311834765,1705443082575,-500.0,0.00033424,5]
[311834766,1705443082584,-500.0,0.00033424,5]
[311834767,1705443082593,-500.0,0.00033424,5]
[311834768,1705443082602,-1649.7,0.00033424,5]
[311834769,1705443082612,-500.0,0.00033424,4]
[311834770,1705443082621,-500.0,0.00033424,5]
[311834771,1705443082630,-693.25,0.00033424,5]
[311834772,1705443082638,-500.0,0.00033424,5]
[311834773,1705443082648,-500.0,0.00033424,5]
[311834774,1705443082658,-500.0,0.00033424,5]
[311834775,1705443082667,-500.0,0.00033424,5]
[311834776,1705443082678,-500.0,0.00033424,5]
[311834777,1705443082688,-500.0,0.00033424,5]
[311834778,1705443082698,-500.0,0.00033424,5]
[311834779,1705443082708,-500.0,0.00033424,5]
[311834780,1705443082718,-500.0,0.00033424,7]
[311834781,1705443082736,-500.0,0.00033424,5]
[311834782,1705443082747,-500.0,0.00033424,5]
[311834783,1705443082756,-500.0,0.00033424,5]
[311834784,1705443082765,-500.0,0.00033424,5]
[311834785,1705443082775,-500.0,0.00033424,5]
[311834786,1705443082785,-500.0,0.00033424,5]
[311834787,1705443082794,-710.0,0.00033424,5]
[311834788,1705443082806,-500.0,0.00033424,5]
[311834789,1705443082814,-500.0,0.00033424,5]
[311834790,1705443082823,-500.0,0.00033424,5]
[311834791,1705443082832,-517.92425869,0.00033424,5]
[311834792,1705443082840,-500.0,0.00033424,5]
[311834793,1705443082849,-500.0,0.00033424,5]
[311834794,1705443082858,-500.0,0.00033424,5]
[311834795,1705443082867,-500.0,0.00033424,5]
[311834796,1705443082876,-500.0,0.00033424,5]
[311834797,1705443082886,-500.0,0.00033424,5]
[311834798,1705443082895,-500.0,0.00033424,5]
[311834799,1705443082904,-500.0,0.00033424,5]
[311834800,1705443082913,-500.0,0.00033424,5]
[311834801,1705443082922,-500.0,0.00033424,5]
[311834802,1705443082931,-623.92,0.00033424,5]
[311834803,1705443082940,-500.0,0.00033424,5]
[311834804,1705443082949,-500.0,0.00033424,5]
[311834805,1705443082959,-500.0,0.00033424,5]
[311834806,1705443082969,-208.03816405,0.00033424,5]
[311834807,1705443082978,-188.60386919,0.00033424,5]
[311834808,1705443082988,-500.0,0.00033424,5]
[311834809,1705443082997,-500.0,0.00033424,5]
[311834810,1705443083007,-1070.06,0.00033424,5]
[311834811,1705443083016,-822.91,0.00033424,5]
[311834812,1705443083026,-804.14,0.00033424,5]
[311834813,1705443083037,-500.0,0.00033424,5]
[311834814,1705443083047,-523.12635772,0.00033424,5]
[311834815,1705443083056,-680.14,0.00033424,5]
[311834816,1705443083066,-989.61,0.00033424,5]
[311834817,1705443083075,-500.0,0.00033424,5]
[311834818,1705443083084,-500.0,0.00033424,3]
[311834819,1705443083094,-500.0,0.00033424,5]
[311834820,1705443083103,-500.0,0.00033424,5]
[311834821,1705443083113,-500.0,0.00033424,5]
[311834822,1705443083122,-506.99295624,0.00033424,5]
[311834823,1705443083132,-1553.64,0.00033424,5]
[311834824,1705443083141,-500.0,0.00033424,5]
[311834825,1705443083150,-1105.74,0.00033424,5]
[311834826,1705443083159,-556.67269218,0.00033424,5]
[311834827,1705443083168,-500.0,0.00033424,5]
[311834828,1705443083178,-500.0,0.00033424,5]
[311834829,1705443083188,-431.66784804,0.00033424,5]
[311834830,1705443083201,-920.39,0.00033424,2]
[311834831,1705443083210,-500.0,0.00033424,5]
[311834832,1705443083219,-839.74,0.00033424,5]
[311834833,1705443083229,-500.0,0.00033424,5]
[311834834,1705443083238,-500.0,0.00033424,5]
[311834835,1705443083247,-500.0,0.00033424,2]
[311834836,1705443083256,-500.0,0.00033424,5]
[311834837,1705443083265,-500.0,0.00033424,5]
[311834838,1705443083276,-500.0,0.00033424,5]
[311834839,1705443083288,-850.99,0.00033424,5]
[311834840,1705443083297,-500.0,0.00033424,5]
[311834841,1705443083306,-902.5,0.00033424,5]
[311834842,1705443083315,-500.0,0.00033424,5]
[311834843,1705443083324,-500.0,0.00033424,5]
[311834844,1705443083334,-500.0,0.00033424,5]
[311834845,1705443083344,-500.0,0.00033424,5]
[311834846,1705443083353,-328.48965412,0.00033424,5]
[311834847,1705443083362,-500.0,0.00033424,5]
[311834848,1705443083371,-500.0,0.00033424,5]
[311834849,1705443083380,-500.0,0.00033424,5]
[311834850,1705443083390,-500.0,0.00033424,5]
[311834851,1705443083400,-500.0,0.00033424,5]
[311834852,1705443083410,-500.0,0.00033424,5]
[311834853,1705443083419,-500.0,0.00033424,5]
[311834854,1705443083429,-500.0,0.00033424,5]
[311834855,1705443083438,-724.17,0.00033424,5]
[311834856,1705443083448,-500.0,0.00033424,5]
[311834857,1705443083457,-500.0,0.00033424,5]
[311834858,1705443083466,-500.0,0.00033424,5]
[311834859,1705443083475,-500.0,0.00033424,5]
[311834860,1705443083484,-500.0,0.00033424,5]
[311834861,1705443083493,-500.0,0.00033424,5]
[311834862,1705443083503,-500.0,0.00033424,5]
[311834863,1705443083513,-500.0,0.00033424,5]
[311834864,1705443083523,-500.0,0.00033424,5]
[311834865,1705443083533,-1962.93,0.00033424,5]
[311834866,1705443083545,-974.34,0.00033424,5]
[311834867,1705443083555,-500.0,0.00033424,5]
[311834868,1705443083565,-500.0,0.00033424,5]
[311834869,1705443083575,-500.0,0.00033424,5]
[311834870,1705443083586,-779.46,0.00033424,5]
[311834871,1705443083595,-1082.58,0.00033424,5]
[311834872,1705443083605,-500.0,0.00033424,5]
[311834873,1705443083614,-778.62,0.00033424,5]
[311834874,1705443083624,-500.0,0.00033424,5]
[311834875,1705443083634,-544.52,0.00033424,5]
[311834876,1705443083644,-500.0,0.00033424,5]
[311834877,1705443083653,-714.8,0.00033424,5]
[311834878,1705443083662,-939.32,0.00033424,5]
[311834879,1705443083672,-500.0,0.00033424,5]
[311834880,1705443083681,-500.0,0.00033424,5]
[311834881,1705443083690,-500.0,0.00033424,5]
[311834882,1705443083699,-500.0,0.00033424,5]
[311834883,1705443083708,-500.0,0.00033424,5]
[311834884,1705443083717,-500.0,0.00033424,5]
[311834885,1705443083726,-1296.38,0.00033424,5]
[311834886,1705443083745,-500.0,0.00033424,5]
[311834887,1705443083754,-920.89,0.00033424,5]
[311834888,1705443083763,-345.3063026,0.00033424,5]
[311834889,1705443083772,-911.77,0.00033424,5]
[311834890,1705443083781,-500.0,0.00033424,5]
[311834891,1705443083791,-500.0,0.00033424,5]
[311834892,1705443083800,-500.0,0.00033424,5]
[311834893,1705443083810,-500.0,0.00033424,5]
[311834894,1705443083819,-500.0,0.00033424,5]
[311834895,1705443083829,-1564.34,0.00033424,5]
[311834896,1705443083838,-500.0,0.00033424,5]
[311834897,1705443083847,-509.79046977,0.00033424,5]
[311834898,1705443083856,-500.0,0.00033424,5]
[311834899,1705443083866,-500.0,0.00033424,5]
[311834900,1705443083875,-500.0,0.00033424,5]
[311834901,1705443083885,-500.0,0.00033424,5]
[311834902,1705443083894,-500.0,0.00033424,5]
[311834903,1705443083903,-500.0,0.00033424,5]
[311834904,1705443083912,-1316.42,0.00033424,5]
[311834905,1705443083921,-805.07,0.00033424,5]
[311834906,1705443083930,-800.42,0.00033424,5]
[311834907,1705443083939,-500.0,0.00033424,5]
[311834908,1705443083949,-500.0,0.00033424,5]
[311834909,1705443083958,-551.54,0.00033424,5]
[311834910,1705443083967,-500.0,0.00033424,5]
[311834911,1705443083976,-1000.0,0.00033424,5]
[311834912,1705443083985,-884.78,0.00033424,5]
[311834913,1705443083995,-500.0,0.00033424,5]
[311834914,1705443084004,-500.0,0.00033424,5]
[311834915,1705443084013,-500.0,0.00033424,5]
[311834916,1705443084022,-1500.0,0.00033424,2]
[311834917,1705443084031,-500.0,0.00033424,5]
[311834918,1705443084042,-500.0,0.00033424,5]
[311834919,1705443084051,-475.28580587,0.00033424,5]
[311834920,1705443084059,-500.0,0.00033424,5]
[311834921,1705443084069,-500.0,0.00033424,5]
[311834922,1705443084078,-500.0,0.00033424,5]
[311834923,1705443084087,-552.66,0.00033424,5]
[311834924,1705443084095,-873.6,0.00033424,5]
[311834925,1705443084104,-780.84,0.00033424,5]
[311834926,1705443084113,-500.0,0.00033424,5]
[311834927,1705443084122,-655.56,0.00033424,5]
[311834928,1705443084132,-1228.73,0.00033424,5]
[311834929,1705443084140,-1255.01,0.00033424,5]
[311834930,1705443084149,-939.36,0.00033424,5]
[311834931,1705443084158,-2068.79,0.00033424,5]
[311834932,1705443084165,-692.88,0.00033424,5]
[311834933,1705443084171,-500.0,0.00033424,5]
[311834934,1705443084178,-500.0,0.00033424,5]
[311834935,1705443084185,-500.0,0.00033424,5]
[311834936,1705443084194,-500.0,0.00033424,5]
[311834937,1705443084202,-611.01,0.00033424,5]
[311834938,1705443084210,-1366.66,0.00033424,5]
[311834939,1705443084220,-500.0,0.00033424,5]
[311834940,1705443084230,-1576.83,0.00033424,5]
[311834941,1705443084239,-539.07,0.00033424,5]
[311834942,1705443084249,-698.72,0.00033424,5]
[311834943,1705443084258,-1399.84,0.00033424,5]
[311834944,1705443084267,-977.33,0.00033424,5]
[311834945,1705443084278,-500.0,0.00033424,5]
[311834946,1705443084288,-500.0,0.00033424,5]
[311834947,1705443084297,-500.0,0.00033424,5]
[311834948,1705443084306,-500.0,0.00033424,5]
[311834949,1705443084315,-500.0,0.00033424,5]
[311834950,1705443084324,-506.59290762,0.00033424,5]
[311834951,1705443084333,-500.0,0.00033424,5]
[311834952,1705443084343,-500.0,0.00033424,5]
[311834953,1705443084352,-500.0,0.00033424,5]
[311834954,1705443084362,-335.7597351,0.00033424,5]
[311834955,1705443084374,-823.52,0.00033424,5]
[311834956,1705443084384,-500.0,0.00033424,5]
[311834957,1705443084393,-567.88,0.00033424,5]
[311834958,1705443084403,-1584.13,0.00033424,5]
[311834959,1705443084414,-580.58,0.00033424,5]
[311834960,1705443084424,-500.0,0.00033424,5]
[311834961,1705443084434,-500.0,0.00033424,5]
[311834962,1705443084443,-500.0,0.00033424,5]
[311834963,1705443084452,-500.0,0.00033424,5]
[311834964,1705443084462,-500.0,0.00033424,5]
[311834965,1705443084471,-845.66,0.00033424,5]
[311834966,1705443084480,-500.0,0.00033424,5]
[311834967,1705443084489,-692.6,0.00033424,5]
[311834968,1705443084498,-500.0,0.00033424,5]
[311834969,1705443084507,-500.0,0.00033424,5]
[311834970,1705443084516,-500.0,0.00033424,5]
[311834971,1705443084526,-500.0,0.00033424,5]
[311834972,1705443084535,-500.0,0.00033424,5]
[311834973,1705443084547,-1123.2,0.00033424,5]
[311834974,1705443084557,-1946.58,0.00033424,5]
[311834975,1705443084566,-929.03,0.00033424,5]
[311834976,1705443084575,-2312.18,0.00033424,5]
[311834977,1705443084585,-500.0,0.00033424,5]
[311834978,1705443084594,-500.0,0.00033424,5]
[311834979,1705443084603,-193.15739303,0.00033424,5]
[311834980,1705443084613,-500.0,0.00033424,5]
[311834981,1705443084622,-500.0,0.00033424,5]
[311834982,1705443084631,-500.0,0.00033424,5]
[311834983,1705443084641,-204.57400316,0.00033424,5]
[311834984,1705443084650,-2100.74,0.00033424,5]
[311834985,1705443084659,-500.0,0.00033424,5]
[311834986,1705443084668,-219.94486515,0.00033424,5]
[311834987,1705443084678,-688.89,0.00033424,5]
[311834988,1705443084686,-500.0,0.00033424,5]
[311834989,1705443084696,-500.0,0.00033424,5]
[311834990,1705443084705,-500.0,0.00033424,5]
[311834991,1705443084714,-500.0,0.00033424,5]
[311834992,1705443084725,-500.0,0.00033424,5]
[311834993,1705443084734,-500.0,0.00033424,5]
[311834994,1705443084743,-500.0,0.00033424,5]
[311834995,1705443084753,-500.0,0.00033424,5]
[311834996,1705443084763,-507.12575621,0.00033424,5]
[311834997,1705443084772,-500.0,0.00033424,5]
[311834998,1705443084781,-500.0,0.00033424,5]
[311834999,1705443084792,-500.0,0.00033424,5]
[311835000,1705443084801,-834.5,0.00033424,5]
[311835001,1705443084811,-500.0,0.00033424,5]
[311835002,1705443084820,-2754.05,0.00033424,5]
[311835003,1705443084829,-736.36,0.00033424,5]
[311835004,1705443084838,-500.0,0.00033424,5]
[311835005,1705443084847,-500.0,0.00033424,5]
[311835006,1705443084857,-500.0,0.00033424,5]
[311835007,1705443084866,-500.0,0.00033424,5]
[311835008,1705443084875,-697.94,0.00033424,5]
[311835009,1705443084884,-618.01,0.00033424,5]
[311835010,1705443084894,-500.0,0.00033424,5]
[311835011,1705443084903,-500.0,0.00033424,5]
[311835012,1705443084912,-500.0,0.00033424,5]
[311835013,1705443084921,-500.0,0.00033424,5]
[311835014,1705443084931,-2573.24,0.00033424,5]
[311835015,1705443084940,-500.0,0.00033424,5]
[311835016,1705443084950,-1033.7,0.00033424,5]
[311835017,1705443084960,-500.0,0.00033424,5]
[311835018,1705443084969,-513.25750591,0.00033424,5]
[311835019,1705443084979,-500.0,0.00033424,5]
[311835020,1705443084988,-500.0,0.00033424,5]
[311835021,1705443084998,-500.0,0.00033424,5]
[311835022,1705443085008,-1240.47,0.00033424,5]
[311835023,1705443085018,-1535.69,0.00033424,5]
[311835024,1705443085028,-598.18,0.00033424,5]
[311835025,1705443085039,-500.0,0.00033424,5]
[311835026,1705443085147,-500.0,0.00033424,5]
[311835027,1705443085170,-500.0,0.00033424,5]
[311835028,1705443085181,-561.13,0.00033424,5]
[311835029,1705443085195,-641.73,0.00033424,5]
[311835030,1705443085204,-895.0,0.00033424,5]
[311835031,1705443085213,-1946.09,0.00033424,5]
[311835032,1705443085223,-885.32,0.00033424,5]
[311835033,1705443085235,-500.0,0.00033424,5]
[311835034,1705443085244,-979.06,0.00033424,5]
[311835035,1705443085253,-537.49,0.00033424,5]
[311835036,1705443085262,-500.0,0.00033424,5]
[311835037,1705443085275,-500.0,0.00033424,5]
[311835038,1705443085285,-500.0,0.00033424,5]
[311835039,1705443085296,-500.0,0.00033424,5]
[311835040,1705443085306,-552.25,0.00033424,5]
[311835041,1705443085316,-500.0,0.00033424,5]
[311835042,1705443085325,-1141.31,0.00033424,5]
[311835043,1705443085335,-500.0,0.00033424,5]
[311835044,1705443085344,-500.0,0.00033424,5]
[311835045,1705443085354,-1195.73,0.00033424,5]
[311835046,1705443085363,-500.0,0.00033424,5]
[311835047,1705443085372,-500.0,0.00033424,5]
[311835048,1705443085382,-500.0,0.00033424,5]
[311835049,1705443085391,-777.9,0.00033424,5]
[311835050,1705443085400,-500.0,0.00033424,5]
[311835051,1705443085409,-1469.74,0.00033424,5]
[311835052,1705443085418,-500.0,0.00033424,5]
[311835053,1705443085428,-1486.14,0.00033424,5]
[311835054,1705443085437,-1372.91,0.00033424,5]
[311835055,1705443085447,-674.9,0.00033424,5]
[311835056,1705443085456,-358.18,0.00033424,5]
[311835057,1705443085465,-500.0,0.00033424,5]
[311835058,1705443085475,-1058.87,0.00033424,5]
[311835059,1705443085484,-500.0,0.00033424,5]
[311835060,1705443085493,-500.0,0.00033424,5]
[311835061,1705443085503,-1448.48,0.00033424,5]
[311835062,1705443085512,-1666.07,0.00033424,5]
[311835063,1705443085522,-595.74,0.00033424,5]
[311835064,1705443085531,-645.28,0.00033424,5]
[311835065,1705443085540,-500.0,0.00033424,5]
[311835066,1705443085549,-1164.28,0.00033424,5]
[311835067,1705443085559,-500.0,0.00033424,5]
[311835068,1705443085568,-1175.3,0.00033424,5]
[311835069,1705443085578,-500.0,0.00033424,5]
[311835070,1705443085587,-500.0,0.00033424,5]
[311835071,1705443085597,-700.11,0.00033424,5]
[311835072,1705443085606,-500.0,0.00033424,5]
[311835073,1705443085616,-500.0,0.00033424,5]
[311835074,1705443085625,-300.8013714,0.00033424,5]
[311835075,1705443085634,-925.17,0.00033424,5]
[311835076,1705443085644,-546.37946504,0.00033424,5]
[311835077,1705443085653,-1000.0,0.00033424,7]
[311835078,1705443085663,-500.0,0.00033424,5]
[311835079,1705443085673,-551.56,0.00033424,5]
[311835080,1705443085682,-500.0,0.00033424,5]
[311835081,1705443085692,-500.0,0.00033424,5]
[311835082,1705443085701,-1490.4,0.00033424,5]
[311835083,1705443085711,-1223.25,0.00033424,5]
[311835084,1705443085721,-500.0,0.00033424,5]
[311835085,1705443085731,-1184.66,0.00033424,5]
[311835086,1705443085740,-500.35998134,0.00033424,5]